Workbook

Sheet MATRICULA
C2: Secretaría de Educación Pública del Estado de Baja California Sur
C3: Dirección de Educación Secundaria
C5: MATRÍCULA
C7: PERIODO DE EVALUACIÓN: | O7: CONCENTRADO TERCER PERIODO DE EVALUACIÓN
C8: CICLO ESCOLAR : | O8: 2022-2023
I11: MTRA. OFELIA ELIZABETH OCHOA ROMERO
I12: DIRECCIÓN DE EDUCACIÓN SECUNDARIA
B14: MODALIDAD | C14: MATRÍCULA
C15: INSCRIPCIÓN INICIAL | O15: CAMBIOS DESDE OTRAS ESCUELAS (ALTAS)
C16: PRIMERO | F16: SEGUNDO | I16: TERCERO | L16: TOTAL | O16: PRIMERO | R16: SEGUNDO | U16: TERCERO | X16: TOTAL
C17: H | D17: M | E17: T | F17: H | G17: M | H17: T | I17: H | J17: M | K17: T | L17: H | M17: M | N17: T | O17: H | P17: M | Q17: T | R17: H | S17: M | T17: T | U17: H | V17: M | W17: T | X17: H | Y17: M | Z17: T
B18: GENERALES PÚBLICAS | C18: 2862 | D18: 2805 | E18: =C18+D18 -> 5667 | F18: 2805 | G18: 2701 | H18: =F18+G18 -> 5506 | I18: 2785 | J18: 2883 | K18: =I18+J18 -> 5668 | L18: =C18+F18+I18 -> 8452 | M18: =D18+G18+J18 -> 8389 | N18: =L18+M18 -> 16841 | O18: 54 | P18: 44 | Q18: =O18+P18 -> 98 | R18: 35 | S18: 53 | T18: =R18+S18 -> 88 | U18: 20 | V18: 19 | W18: =U18+V18 -> 39 | X18: =O18+R18+U18 -> 109 | Y18: =P18+S18+V18 -> 116 | Z18: =X18+Y18 -> 225
B19: GENERALES PARTICULARES | C19: 800 | D19: 763 | E19: =C19+D19 -> 1563 | F19: 641 | G19: 650 | H19: =F19+G19 -> 1291 | I19: 596 | J19: 628 | K19: =I19+J19 -> 1224 | L19: =C19+F19+I19 -> 2037 | M19: =D19+G19+J19 -> 2041 | N19: =L19+M19 -> 4078 | O19: 21 | P19: 16 | Q19: =O19+P19 -> 37 | R19: 19 | S19: 33 | T19: =R19+S19 -> 52 | U19: 10 | V19: 11 | W19: =U19+V19 -> 21 | X19: =O19+R19+U19 -> 50 | Y19: =P19+S19+V19 -> 60 | Z19: =X19+Y19 -> 110
B20: SEC TÉCNICAS | C20: 2567 | D20: 2530 | E20: =IF(SUM(C20,D20)=0,"",SUM(C20,D20)) -> 5097 | F20: 2579 | G20: 2528 | H20: =IF(SUM(F20,G20)=0,"",SUM(F20,G20)) -> 5107 | I20: 2555 | J20: 2531 | K20: =IF(SUM(I20,J20)=0,"",SUM(I20,J20)) -> 5086 | L20: =IF(SUM(C20,F20,I20)=0,"",SUM(C20,F20,I20)) -> 7701 | M20: =IF(SUM(D20,G20,J20)=0,"",SUM(SUM(D20,G20,J20))) -> 7589 | N20: =IF(SUM(L20,M20)=0,"",SUM(L20,M20)) -> 15290 | O20: 87 | P20: 73 | Q20: =IF(SUM(O20,P20)=0,"",SUM(O20,P20)) -> 160 | R20: 70 | S20: 78 | T20: =IF(SUM(R20,S20)=0,"",SUM(R20,S20)) -> 148 | U20: 31 | V20: 62 | W20: =IF(SUM(U20,V20)=0,"",SUM(U20,V20)) -> 93 | X20: =IF(SUM(O20,R20,U20)=0,"",SUM(O20,R20,U20)) -> 188 | Y20: =IF(SUM(P20,S20,V20)=0,"",SUM(SUM(P20,S20,V20))) -> 213 | Z20: =IF(SUM(X20,Y20)=0,"",SUM(X20,Y20)) -> 401
B21: TELESECUNDARIAS | C21: 935 | D21: 772 | E21: 1707 | F21: 939 | G21: 798 | H21: 1737 | I21: 844 | J21: 749 | K21: 1593 | L21: 2718 | M21: 2319 | N21: 5037 | O21: 28 | P21: 26 | Q21: 54 | R21: 16 | S21: 33 | T21: 49 | U21: 18 | V21: 31 | W21: 49 | X21: 62 | Y21: 90 | Z21: 152
E22: =IF(SUM(C22,D22)=0,"",SUM(C22,D22)) ->  | H22: =IF(SUM(F22,G22)=0,"",SUM(F22,G22)) ->  | K22: =IF(SUM(I22,J22)=0,"",SUM(I22,J22)) ->  | L22: =IF(SUM(C22,F22,I22)=0,"",SUM(C22,F22,I22)) ->  | M22: =IF(SUM(D22,G22,J22)=0,"",SUM(SUM(D22,G22,J22))) ->  | N22: =IF(SUM(L22,M22)=0,"",SUM(L22,M22)) ->  | Q22: =IF(SUM(O22,P22)=0,"",SUM(O22,P22)) ->  | T22: =IF(SUM(R22,S22)=0,"",SUM(R22,S22)) ->  | W22: =IF(SUM(U22,V22)=0,"",SUM(U22,V22)) ->  | X22: =IF(SUM(O22,R22,U22)=0,"",SUM(O22,R22,U22)) ->  | Y22: =IF(SUM(P22,S22,V22)=0,"",SUM(SUM(P22,S22,V22))) ->  | Z22: =IF(SUM(X22,Y22)=0,"",SUM(X22,Y22)) -> 
B23: TOTAL | C23: =IF(SUM(C18:C22)=0,"",SUM(C18:C22)) -> 7164 | D23: 6870 | E23: 14034 | F23: 6964 | G23: 6677 | H23: 13641 | I23: 6780 | J23: 6791 | K23: 13571 | L23: 20908 | M23: 20338 | N23: 41246 | O23: 190 | P23: 159 | Q23: 349 | R23: 140 | S23: 197 | T23: 337 | U23: 79 | V23: 123 | W23: 202 | X23: 409 | Y23: 479 | Z23: 888
B25: MODALIDAD | C25: BAJAS | AA25: EXISTENCIA
C26: DESERCIÓN | O26: CAMBIOS HACIA OTRAS ESCUELAS (TRASLADOS)
C27: PRIMERO | F27: SEGUNDO | I27: TERCERO | L27: TOTAL | O27: PRIMERO | R27: SEGUNDO | U27: TERCERO | X27: TOTAL | AA27: PRIMERO | AD27: SEGUNDO | AG27: TERCERO | AJ27: TOTAL
C28: H | D28: M | E28: T | F28: H | G28: M | H28: T | I28: H | J28: M | K28: T | L28: H | M28: M | N28: T | O28: H | P28: M | Q28: T | R28: H | S28: M | T28: T | U28: H | V28: M | W28: T | X28: H | Y28: M | Z28: T | AA28: H | AB28: M | AC28: T | AD28: H | AE28: M | AF28: T | AG28: H | AH28: M | AI28: T | AJ28: H | AK28: M | AL28: T
B29: =IF(B18=0,"",B18) -> GENERALES PÚBLICAS | C29: 1 | D29: 2 | E29: =C29+D29 -> 3 | F29: 2 | G29: 7 | H29: =F29+G29 -> 9 | I29: 10 | J29: 18 | K29: =I29+J29 -> 28 | L29: =C29+F29+I29 -> 13 | M29: =D29+G29+J29 -> 27 | N29: =L29+M29 -> 40 | O29: 53 | P29: 51 | Q29: =O29+P29 -> 104 | R29: 81 | S29: 70 | T29: =R29+S29 -> 151 | U29: 56 | V29: 43 | W29: =U29+V29 -> 99 | X29: =O29+R29+U29 -> 190 | Y29: =P29+S29+V29 -> 164 | Z29: =X29+Y29 -> 354 | AA29: =C18+O18-C29-O29 -> 2862 | AB29: =D18+P18-D29-P29 -> 2796 | AC29: =AA29+AB29 -> 5658 | AD29: =F18+R18-F29-R29 -> 2757 | AE29: =G18+S18-G29-S29 -> 2677 | AF29: =AD29+AE29 -> 5434 | AG29: =I18+U18-I29-U29 -> 2739 | AH29: =J18+V18-J29-V29 -> 2841 | AI29: =AG29+AH29 -> 5580 | AJ29: =AA29+AD29+AG29 -> 8358 | AK29: =AB29+AE29+AH29 -> 8314 | AL29: =AJ29+AK29 -> 16672
B30: =IF(B19=0,"",B19) -> GENERALES PARTICULARES | C30: 1 | D30: 1 | E30: =C30+D30 -> 2 | F30: 2 | G30: 1 | H30: =F30+G30 -> 3 | I30: 1 | J30: 0 | K30: =I30+J30 -> 1 | L30: =C30+F30+I30 -> 4 | M30: =D30+G30+J30 -> 2 | N30: =L30+M30 -> 6 | O30: 12 | P30: 7 | Q30: =O30+P30 -> 19 | R30: 10 | S30: 17 | T30: =R30+S30 -> 27 | U30: 2 | V30: 12 | W30: =U30+V30 -> 14 | X30: =O30+R30+U30 -> 24 | Y30: =P30+S30+V30 -> 36 | Z30: =X30+Y30 -> 60 | AA30: =C19+O19-C30-O30 -> 808 | AB30: =D19+P19-D30-P30 -> 771 | AC30: =AA30+AB30 -> 1579 | AD30: =F19+R19-F30-R30 -> 648 | AE30: =G19+S19-G30-S30 -> 665 | AF30: =AD30+AE30 -> 1313 | AG30: =I19+U19-I30-U30 -> 603 | AH30: =J19+V19-J30-V30 -> 627 | AI30: 1231 | AJ30: =AA30+AD30+AG30 -> 2059 | AK30: =AB30+AE30+AH30 -> 2063 | AL30: =AJ30+AK30 -> 4122
B31: =IF(B20=0,"",B20) -> SEC TÉCNICAS | C31: 16 | D31: 7 | E31: =IF(SUM(C31,D31)=0,"",SUM(C31,D31)) -> 23 | F31: 16 | G31: 12 | H31: =IF(SUM(F31,G31)=0,"",SUM(F31,G31)) -> 28 | I31: 10 | J31: 14 | K31: =IF(SUM(I31,J31)=0,"",SUM(I31,J31)) -> 24 | L31: =IF(SUM(C31,F31,I31)=0,"",SUM(C31,F31,I31)) -> 42 | M31: =IF(SUM(D31,G31,J31)=0,"",SUM(SUM(D31,G31,J31))) -> 33 | N31: =IF(SUM(L31,M31)=0,"",SUM(L31,M31)) -> 75 | O31: 81 | P31: 95 | Q31: =IF(SUM(O31,P31)=0,"",SUM(O31,P31)) -> 176 | R31: 69 | S31: 99 | T31: =IF(SUM(R31,S31)=0,"",SUM(R31,S31)) -> 168 | U31: 45 | V31: 51 | W31: =IF(SUM(U31,V31)=0,"",SUM(U31,V31)) -> 96 | X31: =IF(SUM(O31,R31,U31)=0,"",SUM(O31,R31,U31)) -> 195 | Y31: =IF(SUM(P31,S31,V31)=0,"",SUM(SUM(P31,S31,V31))) -> 245 | Z31: =IF(SUM(X31,Y31)=0,"",SUM(X31,Y31)) -> 440 | AA31: =IF(SUM(C20,O20-C31-O31)=0,"",SUM(C20,O20-C31-O31)) -> 2557 | AB31: 2501 | AC31: =IF(SUM(AA31,AB31)=0,"",SUM(AA31,AB31)) -> 5058 | AD31: =IF(SUM(F20,R20-F31-R31)=0,"",SUM(F20,R20-F31-R31)) -> 2564 | AE31: 2495 | AF31: =IF(SUM(AD31,AE31)=0,"",SUM(AD31,AE31)) -> 5059 | AG31: =IF(SUM(I20,U20-I31-U31)=0,"",SUM(I20,U20-I31-U31)) -> 2531 | AH31: 2528 | AI31: =IF(SUM(AG31,AH31)=0,"",SUM(AG31,AH31)) -> 5059 | AJ31: =IF(SUM(AA31,AD31,AG31)=0,"",SUM(AA31,AD31,AG31)) -> 7652 | AK31: =IF(SUM(AB31,AE31,AH31)=0,"",SUM(SUM(AB31,AE31,AH31))) -> 7524 | AL31: =IF(SUM(AJ31,AK31)=0,"",SUM(AJ31,AK31)) -> 15176
B32: =IF(B21=0,"",B21) -> TELESECUNDARIAS | C32: 1 | D32: 5 | E32: 6 | F32: 10 | G32: 7 | H32: 17 | I32: 3 | J32: 4 | K32: 7 | L32: 14 | M32: 16 | N32: 30 | O32: 23 | P32: 24 | Q32: 47 | R32: 20 | S32: 25 | T32: 45 | U32: 23 | V32: 23 | W32: 46 | X32: 66 | Y32: 72 | Z32: 138 | AA32: 939 | AB32: 769 | AC32: 1708 | AD32: 925 | AE32: 799 | AF32: 1724 | AG32: 836 | AH32: 753 | AI32: 1589 | AJ32: 2700 | AK32: 2321 | AL32: 5021
B33: =IF(B22=0,"",B22) ->  | E33: =IF(SUM(C33,D33)=0,"",SUM(C33,D33)) ->  | H33: =IF(SUM(F33,G33)=0,"",SUM(F33,G33)) ->  | K33: =IF(SUM(I33,J33)=0,"",SUM(I33,J33)) ->  | L33: =IF(SUM(C33,F33,I33)=0,"",SUM(C33,F33,I33)) ->  | M33: =IF(SUM(D33,G33,J33)=0,"",SUM(SUM(D33,G33,J33))) ->  | N33: =IF(SUM(L33,M33)=0,"",SUM(L33,M33)) ->  | Q33: =IF(SUM(O33,P33)=0,"",SUM(O33,P33)) ->  | T33: =IF(SUM(R33,S33)=0,"",SUM(R33,S33)) ->  | W33: =IF(SUM(U33,V33)=0,"",SUM(U33,V33)) ->  | X33: =IF(SUM(O33,R33,U33)=0,"",SUM(O33,R33,U33)) ->  | Y33: =IF(SUM(P33,S33,V33)=0,"",SUM(SUM(P33,S33,V33))) ->  | Z33: =IF(SUM(X33,Y33)=0,"",SUM(X33,Y33)) ->  | AC33: =IF(SUM(AA33,AB33)=0,"",SUM(AA33,AB33)) ->  | AF33: =IF(SUM(AD33,AE33)=0,"",SUM(AD33,AE33)) ->  | AI33: =IF(SUM(AG33,AH33)=0,"",SUM(AG33,AH33)) ->  | AJ33: =IF(SUM(AA33,AD33,AG33)=0,"",SUM(AA33,AD33,AG33)) ->  | AK33: =IF(SUM(AB33,AE33,AH33)=0,"",SUM(SUM(AB33,AE33,AH33))) ->  | AL33: =IF(SUM(AJ33,AK33)=0,"",SUM(AJ33,AK33)) -> 
B34: TOTAL | C34: =IF(SUM(C29:C33)=0,"",SUM(C29:C33)) -> 19 | D34: 15 | E34: 34 | F34: 30 | G34: 27 | H34: 57 | I34: 24 | J34: 36 | K34: 60 | L34: 73 | M34: 78 | N34: 151 | O34: 169 | P34: 177 | Q34: 346 | R34: 180 | S34: 211 | T34: 391 | U34: 126 | V34: 129 | W34: 255 | X34: 475 | Y34: 517 | Z34: 992 | AA34: 7166 | AB34: 6837 | AC34: 14003 | AD34: 6894 | AE34: 6636 | AF34: 13530 | AG34: 6709 | AH34: 6749 | AI34: 13459 | AJ34: 20769 | AK34: 20222 | AL34: 40991

Sheet APROV 1
C3: Secretaría de Educación Pública del Estado de Baja California Sur
C4: Dirección de Educación Secundaria
C5: APROVECHAMIENTO Y RIESGO DE NO ACREDITAR
C6: PRIMER GRADO
C7: PERIODO EVALUACIÓN: | O7: =IF(MATRICULA!O7=0,"",MATRICULA!O7) -> CONCENTRADO TERCER PERIODO DE EVALUACIÓN
C8: CICLO ESCOLAR : | O8: =IF(MATRICULA!O8=0,"",MATRICULA!O8) -> 2022-2023
F10: =MATRICULA!I11 -> MTRA. OFELIA ELIZABETH OCHOA ROMERO
F11: =MATRICULA!I12 -> DIRECCIÓN DE EDUCACIÓN SECUNDARIA
A13: Promedio de Aprovechamiento de los Campos de Formación Académica | AA13: Promedio de Aprovechamiento de las Áreas de Desarrollo Personal y Social | AG13: Prom. Final
A14: MODALIDAD | B14: GRUPOS | C14: Lengua Materna | F14: Matemáticas | I14: Inglés | L14: Ciencias y tecnología (Biología) | O14: Historia | R14: Geografía | U14: Formación Cívica y Ética | X14: Tecnología I | AA14: Educación Física | AD14: Artes
C15: CALIF | F15: CALIF | I15: CALIF | L15: CALIF | O15: CALIF | R15: CALIF | U15: CALIF | X15: CALIF | AA15: CALIF | AD15: CALIF | AG15: CALIF
A16: =IF(MATRICULA!B18=0,"",MATRICULA!B18) -> GENERALES PÚBLICAS | B16: 186 | C16: 8.4 | F16: 8.2 | I16: 8.5 | L16: 8.6 | O16: 8.6 | R16: 8.5 | U16: 8.6 | X16: 8.7 | AA16: 9.4 | AD16: 8.9 | AG16: =IFERROR(ROUND(AVERAGE(C16:AF16),1),"") -> 8.6
A17: =IF(MATRICULA!B19=0,"",MATRICULA!B19) -> GENERALES PARTICULARES | B17: 113 | C17: 8.6 | F17: 8.4 | I17: 8.8 | L17: 8.7 | O17: 8.6 | R17: 8.9 | U17: 8.8 | X17: 9 | AA17: 9.5 | AD17: 9.5 | AG17: =IFERROR(ROUND(AVERAGE(C17:AF17),1),"") -> 8.9
A18: =IF(MATRICULA!B20=0,"",MATRICULA!B20) -> SEC TÉCNICAS | B18: 292 | C18: 8.4 | F18: 8.2 | I18: 8.4 | L18: 8.6 | O18: 8.4 | R18: 8.5 | U18: 8.4 | X18: 8.6 | AA18: 9.4 | AD18: 9 | AG18: 8.6
A19: =IF(MATRICULA!B21=0,"",MATRICULA!B21) -> TELESECUNDARIAS | B19: 103 | C19: 8.2 | F19: 8 | I19: 8.3 | L19: 8.3 | O19: 8.2 | R19: 8.2 | U19: 8.5 | X19: 9 | AA19: 9.1 | AD19: 9.1 | AG19: 8.5
A20: =IF(MATRICULA!B22=0,"",MATRICULA!B22) -> 
A21: Gral. | B21: =IF(SUM(B16:B20)=0,"",SUM(B16:B20)) -> 694 | C21: =IFERROR(ROUND(AVERAGE(C16:E20),1),"") -> 8.4 | F21: =IFERROR(ROUND(AVERAGE(F16:H20),1),"") -> 8.2 | I21: =IFERROR(ROUND(AVERAGE(I16:K20),1),"") -> 8.5 | L21: =IFERROR(ROUND(AVERAGE(L16:N20),1),"") -> 8.6 | O21: =IFERROR(ROUND(AVERAGE(O16:Q20),1),"") -> 8.5 | R21: =IFERROR(ROUND(AVERAGE(R16:T20),1),"") -> 8.5 | U21: =IFERROR(ROUND(AVERAGE(U16:W20),1),"") -> 8.6 | X21: =IFERROR(ROUND(AVERAGE(X16:Z20),1),"") -> 8.8 | AA21: =IFERROR(ROUND(AVERAGE(AA16:AC20),1),"") -> 9.4 | AD21: =IFERROR(ROUND(AVERAGE(AD16:AF20),1),"") -> 9.1 | AG21: =IFERROR(ROUND(AVERAGE(C21:AF21),1),"") -> 8.7
A23: Campos de Formación Académica en riesgo de no acreditar | AA23: Áreas de Desarrollo Personal y Social en situación de riesgo de no acreditar | AG23: Total
A24: MODALIDAD | C24: Lengua Materna | F24: Matemáticas | I24: Inglés | L24: Ciencias y tecnología (Biología) | O24: Historia | R24: Geografía | U24: Formación Cívica y Ética | X24: Tecnología I | AA24: Educación Física | AD24: Artes
C25: 5 | D25: 6 | E25: T | F25: 5 | G25: 6 | H25: T | I25: 5 | J25: 6 | K25: T | L25: 5 | M25: 6 | N25: T | O25: 5 | P25: 6 | Q25: T | R25: 5 | S25: 6 | T25: T | U25: 5 | V25: 6 | W25: T | X25: 5 | Y25: 6 | Z25: T | AA25: 5 | AB25: 6 | AC25: T | AD25: 5 | AE25: 6 | AF25: T | AG25: 5 | AH25: 6
A26: =IF(MATRICULA!B18=0,"",MATRICULA!B18) -> GENERALES PÚBLICAS | C26: 137 | D26: 387 | E26: =C26+D26 -> 524 | F26: 217 | G26: 566 | H26: =F26+G26 -> 783 | I26: 145 | J26: 422 | K26: =I26+J26 -> 567 | L26: 162 | M26: 368 | N26: =L26+M26 -> 530 | O26: 161 | P26: 377 | Q26: =O26+P26 -> 538 | R26: 138 | S26: 382 | T26: =R26+S26 -> 520 | U26: 114 | V26: 448 | W26: =U26+V26 -> 562 | X26: 174 | Y26: 357 | Z26: =X26+Y26 -> 531 | AA26: 61 | AB26: 70 | AC26: =AA26+AB26 -> 131 | AD26: 78 | AE26: 243 | AF26: =AD26+AE26 -> 321 | AG26: =C26+F26+I26+L26+O26+R26+U26+X26+AA26+AD26 -> 1387 | AH26: =D26+G26+J26+M26+P26+S26+V26+Y26+AB26+AE26 -> 3620
A27: =IF(MATRICULA!B19=0,"",MATRICULA!B19) -> GENERALES PARTICULARES | C27: 4 | D27: 42 | E27: =C27+D27 -> 46 | F27: 17 | G27: 68 | H27: =F27+G27 -> 85 | I27: 6 | J27: 32 | K27: =I27+J27 -> 38 | L27: 2 | M27: 46 | N27: =L27+M27 -> 48 | O27: 4 | P27: 41 | Q27: =O27+P27 -> 45 | R27: 3 | S27: 31 | T27: =R27+S27 -> 34 | U27: 3 | V27: 50 | W27: =U27+V27 -> 53 | X27: 3 | Y27: 38 | Z27: =X27+Y27 -> 41 | AA27: 2 | AB27: 11 | AC27: =AA27+AB27 -> 13 | AD27: 2 | AE27: 9 | AF27: =AD27+AE27 -> 11 | AG27: =C27+F27+I27+L27+O27+R27+U27+X27+AA27+AD27 -> 46 | AH27: =D27+G27+J27+M27+P27+S27+V27+Y27+AB27+AE27 -> 368
A28: =IF(MATRICULA!B20=0,"",MATRICULA!B20) -> SEC TÉCNICAS | C28: 213 | D28: 435 | E28: =IF(SUM(C28,D28)=0,"",SUM(C28,D28)) -> 648 | F28: 227 | G28: 530 | H28: =IF(SUM(F28,G28)=0,"",SUM(F28,G28)) -> 757 | I28: 260 | J28: 489 | K28: =IF(SUM(I28,J28)=0,"",SUM(I28,J28)) -> 749 | L28: 209 | M28: 508 | N28: =IF(SUM(L28,M28)=0,"",SUM(L28,M28)) -> 717 | O28: 208 | P28: 559 | Q28: =IF(SUM(O28,P28)=0,"",SUM(O28,P28)) -> 767 | R28: 179 | S28: 389 | T28: =IF(SUM(R28,S28)=0,"",SUM(R28,S28)) -> 568 | U28: 173 | V28: 559 | W28: =IF(SUM(U28,V28)=0,"",SUM(U28,V28)) -> 732 | X28: 159 | Y28: 394 | Z28: =IF(SUM(X28,Y28)=0,"",SUM(X28,Y28)) -> 553 | AA28: 52 | AB28: 77 | AC28: =IF(SUM(AA28,AB28)=0,"",SUM(AA28,AB28)) -> 129 | AD28: 107 | AE28: 296 | AF28: =IF(SUM(AD28,AE28)=0,"",SUM(AD28,AE28)) -> 403 | AG28: =IF(SUM(C28,F28,I28,L28,O28,R28,U28,X28,AA28,AD28)=0,"",SUM(C28,F28,I28,L28,O28,R28,U28,X28,AA28,AD28)) -> 1787 | AH28: =IF(SUM(D28,G28,J28,M28,P28,S28,V28,Y28,AB28,AE28)=0,"",SUM(D28,G28,J28,M28,P28,S28,V28,Y28,AB28,AE28)) -> 4236
A29: =IF(MATRICULA!B21=0,"",MATRICULA!B21) -> TELESECUNDARIAS | C29: 25 | D29: 135 | E29: 160 | F29: 33 | G29: 192 | H29: 225 | I29: 47 | J29: 154 | K29: 201 | L29: 24 | M29: 141 | N29: 165 | O29: 30 | P29: 154 | Q29: 184 | R29: 38 | S29: 140 | T29: 178 | U29: 27 | V29: 105 | W29: 132 | X29: 28 | Y29: 52 | Z29: 80 | AA29: 22 | AB29: 39 | AC29: 61 | AD29: 26 | AE29: 60 | AF29: 86 | AG29: 300 | AH29: 1172
A30: =IF(MATRICULA!B22=0,"",MATRICULA!B22) -> 
A31: Total | C31: =IF(SUM(C26:C30)=0,"",SUM(C26:C30)) -> 379 | D31: 999 | E31: 1378 | F31: 494 | G31: 1356 | H31: 1850 | I31: 458 | J31: 1097 | K31: 1555 | L31: 397 | M31: 1063 | N31: 1460 | O31: 403 | P31: 1131 | Q31: 1534 | R31: 358 | S31: 942 | T31: 1300 | U31: 317 | V31: 1162 | W31: 1479 | X31: 364 | Y31: 841 | Z31: 1205 | AA31: 137 | AB31: 197 | AC31: 334 | AD31: 213 | AE31: 608 | AF31: 821 | AG31: 3520 | AH31: 9396
A33: Nota: Para las columnas "Campos de Formación Académica y Áreas de Desarrollo Personal y Social en riesgo de no acreditar" registre la cantidad de cincos o seis que existen en cada campo o área.

Sheet Gráfica APROV 1
B3: Secretaría de Educación Pública del Estado de Baja California Sur
B4: Dirección de Educación Secundaria
B5: PRIMER GRADO
B6: PERIODO EVALUACIÓN: | N6: =MATRICULA!$O$7 -> CONCENTRADO TERCER PERIODO DE EVALUACIÓN
B7: CICLO ESCOLAR : | N7: =MATRICULA!$O$8 -> 2022-2023
H9: =MATRICULA!I11 -> MTRA. OFELIA ELIZABETH OCHOA ROMERO
H10: =MATRICULA!I12 -> DIRECCIÓN DE EDUCACIÓN SECUNDARIA
B17: Lengua Materna | C17: Matemáticas | D17: Inglés | E17: Ciencias y tecnología (Biología) | F17: Historia | G17: Geografía | H17: Formación Cívica y Ética | I17: Tecnología I | J17: Educación Física | K17: Artes
B18: ='APROV 1'!C21 -> 8.4 | C18: ='APROV 1'!F21 -> 8.2 | D18: ='APROV 1'!I21 -> 8.5 | E18: ='APROV 1'!L21 -> 8.6 | F18: ='APROV 1'!O21 -> 8.5 | G18: ='APROV 1'!R21 -> 8.5 | H18: ='APROV 1'!U21 -> 8.6 | I18: ='APROV 1'!X21 -> 8.8 | J18: ='APROV 1'!AA21 -> 9.4 | K18: ='APROV 1'!AD21 -> 9.1

Sheet APROV 2
C4: Secretaría de Educación Pública del Estado de Baja California Sur
C5: Dirección de Educación Secundaria
C6: APROVECHAMIENTO Y RIESGO DE NO ACREDITAR
C7: SEGUNDO GRADO
C8: PERIODO EVALUACIÓN: | O8: =IF('APROV 1'!O7:AA7<>0,'APROV 1'!O7:AA7, "") -> CONCENTRADO TERCER PERIODO DE EVALUACIÓN
C9: CICLO ESCOLAR : | O9: =IF('APROV 1'!O8:AA8<>0, 'APROV 1'!O8:AA8, "") -> 2022-2023
I13: =MATRICULA!I11 -> MTRA. OFELIA ELIZABETH OCHOA ROMERO
I14: =MATRICULA!I12 -> DIRECCIÓN DE EDUCACIÓN SECUNDARIA
A17: Promedio de Aprovechamiento de los Campos de Formación Académica | X17: Promedio de Aprovechamiento de las Áreas de Desarrollo Personal y Social
A18: MODALIDAD | B18: GRUPOS | C18: Lengua Materna | F18: Matemáticas | I18: Inglés | L18: Ciencias y tecnología (Física) | O18: Historia | R18: Formación Cívica y Ética | U18: Tecnología II | X18: Educación Física | AA18: Artes | AD18: Prom. Final
C19: CALIF | F19: CALIF | I19: CALIF | L19: CALIF | O19: CALIF | R19: CALIF | U19: CALIF | X19: CALIF | AA19: CALIF | AD19: CALIF
A20: =IF(MATRICULA!B18=0,"",MATRICULA!B18) -> GENERALES PÚBLICAS | B20: 186 | C20: 8.4 | F20: 8.2 | I20: 8.6 | L20: 8.4 | O20: 8.6 | R20: 8.7 | U20: 8.8 | X20: 9.5 | AA20: 8.8 | AD20: =IFERROR(ROUND(AVERAGE(C20:AC20),1),"") -> 8.7
A21: =IF(MATRICULA!B19=0,"",MATRICULA!B19) -> GENERALES PARTICULARES | B21: 94 | C21: 8.8 | F21: 8.6 | I21: 8.9 | L21: 8.8 | O21: 8.8 | R21: 8.9 | U21: 9.1 | X21: 9.6 | AA21: 9.4 | AD21: 9
A22: =IF(MATRICULA!B20=0,"",MATRICULA!B20) -> SEC TÉCNICAS | B22: 307 | C22: 8.5 | F22: 8.1 | I22: 8.4 | L22: 8.5 | O22: 8.4 | R22: 8.5 | U22: 8.7 | X22: 9.3 | AA22: 9 | AD22: 8.6
A23: =IF(MATRICULA!B21=0,"",MATRICULA!B21) -> TELESECUNDARIAS | B23: 103 | C23: 8.4 | F23: 8.2 | I23: 8.4 | L23: 8.4 | O23: 8.4 | R23: 8.6 | U23: 9.1 | X23: 9.3 | AA23: 9.2 | AD23: 8.7
A24: =IF(MATRICULA!B22=0,"",MATRICULA!B22) -> 
A25: Gral. | B25: =IF(SUM(B20:B24)=0,"",SUM(B20:B24)) -> 690 | C25: =IFERROR(ROUND(AVERAGE(C20:E24),1),"") -> 8.5 | F25: =IFERROR(ROUND(AVERAGE(F20:H24),1),"") -> 8.3 | I25: =IFERROR(ROUND(AVERAGE(I20:K24),1),"") -> 8.6 | L25: =IFERROR(ROUND(AVERAGE(L20:N24),1),"") -> 8.5 | O25: =IFERROR(ROUND(AVERAGE(O20:Q24),1),"") -> 8.6 | R25: =IFERROR(ROUND(AVERAGE(R20:T24),1),"") -> 8.7 | U25: =IFERROR(ROUND(AVERAGE(U20:W24),1),"") -> 8.9 | X25: =IFERROR(ROUND(AVERAGE(X20:Z24),1),"") -> 9.4 | AA25: =IFERROR(ROUND(AVERAGE(AA20:AC24),1),"") -> 9.1 | AD25: =IFERROR(ROUND(AVERAGE(C25:AC25),1),"") -> 8.7
A27: Campos de Formación Académica en situacion de riesgo de no acreditar | X27: Áreas de Desarrollo Personal y Social en situación de riesgo de no acreditar
A28: MODALIDAD | C28: Lengua Materna | F28: Matemáticas | I28: Inglés | L28: Ciencias y tecnología (Física) | O28: Historia | R28: Formación Cívica y Ética | U28: Tecnología II | X28: Educación Física | AA28: Artes | AD28: Total
C29: 5 | D29: 6 | E29: T | F29: 5 | G29: 6 | H29: T | I29: 5 | J29: 6 | K29: T | L29: 5 | M29: 6 | N29: T | O29: 5 | P29: 6 | Q29: T | R29: 5 | S29: 6 | T29: T | U29: 5 | V29: 6 | W29: T | X29: 5 | Y29: 6 | Z29: T | AA29: 5 | AB29: 6 | AC29: T | AD29: 5 | AE29: 6
A30: =IF(MATRICULA!B18=0,"",MATRICULA!B18) -> GENERALES PÚBLICAS | C30: 118 | D30: 347 | E30: =C30+D30 -> 465 | F30: 229 | G30: 558 | H30: =F30+G30 -> 787 | I30: 122 | J30: 403 | K30: =I30+J30 -> 525 | L30: 160 | M30: 485 | N30: =L30+M30 -> 645 | O30: 222 | P30: 393 | Q30: =O30+P30 -> 615 | R30: 102 | S30: 391 | T30: =R30+S30 -> 493 | U30: 185 | V30: 253 | W30: =U30+V30 -> 438 | X30: 63 | Y30: 104 | Z30: =X30+Y30 -> 167 | AA30: 101 | AB30: 291 | AC30: =AA30+AB30 -> 392 | AD30: =C30+F30+I30+L30+O30+R30+U30+X30+AA30 -> 1302 | AE30: =D30+G30+J30+M30+P30+S30+V30+Y30+AB30 -> 3225
A31: =IF(MATRICULA!B19=0,"",MATRICULA!B19) -> GENERALES PARTICULARES | C31: 6 | D31: 32 | E31: =C31+D31 -> 38 | F31: 18 | G31: 73 | H31: =F31+G31 -> 91 | I31: 4 | J31: 40 | K31: =I31+J31 -> 44 | L31: 7 | M31: 44 | N31: =L31+M31 -> 51 | O31: 4 | P31: 16 | Q31: =O31+P31 -> 20 | R31: 0 | S31: 45 | T31: =R31+S31 -> 45 | U31: 4 | V31: 40 | W31: =U31+V31 -> 44 | X31: 1 | Y31: 12 | Z31: 13 | AA31: 0 | AB31: 24 | AC31: 24 | AD31: =C31+F31+I31+L31+O31+R31+U31+X31+AA31 -> 44 | AE31: =D31+G31+J31+M31+P31+S31+V31+Y31+AB31 -> 326
A32: =IF(MATRICULA!B20=0,"",MATRICULA!B20) -> SEC TÉCNICAS | C32: 176 | D32: 362 | E32: =IF(SUM(C32,D32)=0,"",SUM(C32,D32)) -> 538 | F32: 253 | G32: 659 | H32: =IF(SUM(F32,G32)=0,"",SUM(F32,G32)) -> 912 | I32: 277 | J32: 442 | K32: =IF(SUM(I32,J32)=0,"",SUM(I32,J32)) -> 719 | L32: 194 | M32: 477 | N32: =IF(SUM(L32,M32)=0,"",SUM(L32,M32)) -> 671 | O32: 212 | P32: 472 | Q32: =IF(SUM(O32,P32)=0,"",SUM(O32,P32)) -> 684 | R32: 157 | S32: 536 | T32: =IF(SUM(R32,S32)=0,"",SUM(R32,S32)) -> 693 | U32: 176 | V32: 366 | W32: =IF(SUM(U32,V32)=0,"",SUM(U32,V32)) -> 542 | X32: 102 | Y32: 72 | Z32: =IF(SUM(X32,Y32)=0,"",SUM(X32,Y32)) -> 174 | AA32: 99 | AB32: 201 | AC32: =IF(SUM(AA32,AB32)=0,"",SUM(AA32,AB32)) -> 300 | AD32: =IF(SUM(C32,F32,I32,L32,O32,R32,U32,X32,AA32)=0,"",SUM(C32,F32,I32,L32,O32,R32,U32,X32,AA32)) -> 1646 | AE32: =IF(SUM(D32,G32,J32,M32,P32,S32,V32,Y32,AB32)=0,"",SUM(D32,G32,J32,M32,P32,S32,V32,Y32,AB32)) -> 3587
A33: =IF(MATRICULA!B21=0,"",MATRICULA!B21) -> TELESECUNDARIAS | C33: 41 | D33: 127 | E33: 168 | F33: 45 | G33: 147 | H33: 192 | I33: 38 | J33: 134 | K33: 172 | L33: 40 | M33: 153 | N33: 193 | O33: 44 | P33: 145 | Q33: 189 | R33: 43 | S33: 104 | T33: 147 | U33: 42 | V33: 73 | W33: 115 | X33: 28 | Y33: 33 | Z33: 61 | AA33: 46 | AB33: 69 | AC33: 115 | AD33: 367 | AE33: 985
A34: =IF(MATRICULA!B22=0,"",MATRICULA!B22) -> 
A35: Total | C35: =IF(SUM(C30:C34)=0,"",SUM(C30:C34)) -> 341 | D35: 868 | E35: 1209 | F35: 545 | G35: 1437 | H35: 1982 | I35: 441 | J35: 1019 | K35: 1460 | L35: 401 | M35: 1159 | N35: 1560 | O35: 482 | P35: 1026 | Q35: 1508 | R35: 302 | S35: 1076 | T35: 1378 | U35: 407 | V35: 732 | W35: 1139 | X35: 194 | Y35: 221 | Z35: 415 | AA35: 246 | AB35: 585 | AC35: 831 | AD35: 3359 | AE35: 8123
A37: Nota: Para las columnas "Campos de Formación Académica y Áreas de Desarrollo Personal y Social en riesgo de no acreditar" registre la cantidad de cincos o seis que existen en cada campo o área.

Sheet Gráfica APROV 2
B3: Secretaría de Educación Pública del Estado de Baja California Sur
B4: Dirección de Educación Secundaria
B5: SEGUNDO GRADO
B6: PERIODO EVALUACIÓN: | N6: =MATRICULA!O7 -> CONCENTRADO TERCER PERIODO DE EVALUACIÓN
B7: CICLO ESCOLAR : | N7: =MATRICULA!O8 -> 2022-2023
J9: =MATRICULA!I11 -> MTRA. OFELIA ELIZABETH OCHOA ROMERO
J10: =MATRICULA!I12 -> DIRECCIÓN DE EDUCACIÓN SECUNDARIA
B12: Lengua Materna | C12: Matemáticas | D12: Inglés | E12: Ciencias y tecnología (Física) | F12: Historia | G12: Formación Cívica y Ética | H12: Tecnología II | I12: Educación Física | J12: Artes
B13: ='APROV 2'!C25 -> 8.5 | C13: ='APROV 2'!F25 -> 8.3 | D13: ='APROV 2'!I25 -> 8.6 | E13: ='APROV 2'!L25 -> 8.5 | F13: ='APROV 2'!O25 -> 8.6 | G13: ='APROV 2'!R25 -> 8.7 | H13: ='APROV 2'!U25 -> 8.9 | I13: ='APROV 2'!X25 -> 9.4 | J13: ='APROV 2'!AA25 -> 9.1

Sheet APROV 3
C3: Secretaría de Educación Pública del Estado de Baja California Sur
C4: Dirección de Educación Secundaria
C5: APROVECHAMIENTO Y RIESGO DE NO ACREDITAR
C6: TERCER GRADO
C7: PERIODO EVALUACIÓN: | O7: =IF('APROV 1'!O7:AA7<>0,'APROV 1'!O7:AA7, "") -> CONCENTRADO TERCER PERIODO DE EVALUACIÓN
C8: CICLO ESCOLAR : | O8: =IF('APROV 1'!O8:AA8<>0, 'APROV 1'!O8:AA8, "") -> 2022-2023
I10: =MATRICULA!I11 -> MTRA. OFELIA ELIZABETH OCHOA ROMERO
I11: =MATRICULA!I12 -> DIRECCIÓN DE EDUCACIÓN SECUNDARIA
A13: Promedio de Aprovechamiento de los Campos de Formación Académica | X13: Promedio de Aprovechamiento de las Áreas de Desarrollo Personal y Social | AD13: Prom. Final
A14: MODALIDAD | B14: GRUPOS | C14: Español III | F14: Matemáticas III | I14: Segunda Lengua: Inglés III | L14: Ciencias III (Énfasis en Química) | O14: Historia II | R14: Formación Cívica y Ética II | U14: Tecnología III | X14: Educación Física III | AA14: Artes III
C15: CALIF | F15: CALIF | I15: CALIF | L15: CALIF | O15: CALIF | R15: CALIF | U15: CALIF | X15: CALIF | AA15: CALIF | AD15: CALIF
A16: =IF(MATRICULA!B18=0,"",MATRICULA!B18) -> GENERALES PÚBLICAS | B16: 184 | C16: 8.6 | F16: 8.3 | I16: 8.7 | L16: 8.6 | O16: 8.7 | R16: 8.6 | U16: 8.8 | X16: 9.6 | AA16: 8.9 | AD16: =IFERROR(ROUND(AVERAGE(C16:AC16),1),"") -> 8.8
A17: =IF(MATRICULA!B19=0,"",MATRICULA!B19) -> GENERALES PARTICULARES | B17: 92 | C17: 8.8 | F17: 8.6 | I17: 9 | L17: 8.8 | O17: 8.9 | R17: 9.1 | U17: 9.4 | X17: 9.6 | AA17: 9.6 | AD17: 9.1
A18: =IF(MATRICULA!B20=0,"",MATRICULA!B20) -> SEC TÉCNICAS | B18: 291 | C18: 8.6 | F18: 8.2 | I18: 8.5 | L18: 8.6 | O18: 8.6 | R18: 8.6 | U18: 8.8 | X18: 9.4 | AA18: 9.1 | AD18: 8.7
A19: =IF(MATRICULA!B21=0,"",MATRICULA!B21) -> TELESECUNDARIAS | B19: 102 | C19: 8.5 | F19: 8.4 | I19: 8.6 | L19: 8.5 | O19: 8.6 | R19: 8.8 | U19: 9.1 | X19: 9.3 | AA19: 9.1 | AD19: 8.8
A20: =IF(MATRICULA!B22=0,"",MATRICULA!B22) -> 
A21: Gral. | B21: =IF(SUM(B16:B20)=0,"",SUM(B16:B20)) -> 669 | C21: =IFERROR(ROUND(AVERAGE(C16:E20),1),"") -> 8.6 | F21: =IFERROR(ROUND(AVERAGE(F16:H20),1),"") -> 8.4 | I21: =IFERROR(ROUND(AVERAGE(I16:K20),1),"") -> 8.7 | L21: =IFERROR(ROUND(AVERAGE(L16:N20),1),"") -> 8.6 | O21: =IFERROR(ROUND(AVERAGE(O16:Q20),1),"") -> 8.7 | R21: =IFERROR(ROUND(AVERAGE(R16:T20),1),"") -> 8.8 | U21: =IFERROR(ROUND(AVERAGE(U16:W20),1),"") -> 9 | X21: =IFERROR(ROUND(AVERAGE(X16:Z20),1),"") -> 9.5 | AA21: =IFERROR(ROUND(AVERAGE(AA16:AC20),1),"") -> 9.2 | AD21: =IFERROR(ROUND(AVERAGE(C21:AC21),1),"") -> 8.8
A23: Campos de Formación Académica en situacion de riesgo de no acreditar | X23: Áreas de Desarrollo Personal y Social en situación de riesgo de no acreditar
A24: MODALIDAD | C24: Español III | F24: Matemáticas III | I24: Segunda Lengua: Inglés III | L24: Ciencias III (Énfasis en Química) | O24: Historia II | R24: Formación Cívica y Ética II | U24: Tecnología III | X24: Educación Física III | AA24: Artes III | AD24: Total
C25: 5 | D25: 6 | E25: T | F25: 5 | G25: 6 | H25: T | I25: 5 | J25: 6 | K25: T | L25: 5 | M25: 6 | N25: T | O25: 5 | P25: 6 | Q25: T | R25: 5 | S25: 6 | T25: T | U25: 5 | V25: 6 | W25: T | X25: 5 | Y25: 6 | Z25: T | AA25: 5 | AB25: 6 | AC25: T | AD25: 5 | AE25: 6
A26: =IF(MATRICULA!B18=0,"",MATRICULA!B18) -> GENERALES PÚBLICAS | C26: 108 | D26: 339 | E26: =C26+D26 -> 447 | F26: 177 | G26: 577 | H26: =F26+G26 -> 754 | I26: 153 | J26: 440 | K26: =I26+J26 -> 593 | L26: 124 | M26: 422 | N26: =L26+M26 -> 546 | O26: 138 | P26: 330 | Q26: =O26+P26 -> 468 | R26: 95 | S26: 335 | T26: =R26+S26 -> 430 | U26: 154 | V26: 307 | W26: =U26+V26 -> 461 | X26: 82 | Y26: 58 | Z26: =X26+Y26 -> 140 | AA26: 90 | AB26: 304 | AC26: =AA26+AB26 -> 394 | AD26: =C26+F26+I26+L26+O26+R26+U26+X26+AA26 -> 1121 | AE26: =D26+G26+J26+M26+P26+S26+V26+Y26+AB26 -> 3112
A27: =IF(MATRICULA!B19=0,"",MATRICULA!B19) -> GENERALES PARTICULARES | C27: 7 | D27: 29 | E27: =C27+D27 -> 36 | F27: 8 | G27: 47 | H27: =F27+G27 -> 55 | I27: 7 | J27: 42 | K27: =I27+J27 -> 49 | L27: 10 | M27: 51 | N27: =L27+M27 -> 61 | O27: 5 | P27: 20 | Q27: =O27+P27 -> 25 | R27: 3 | S27: 29 | T27: =R27+S27 -> 32 | U27: 1 | V27: 27 | W27: =U27+V27 -> 28 | X27: 1 | Y27: 7 | Z27: =X27+Y27 -> 8 | AA27: 9 | AB27: 22 | AC27: =AA27+AB27 -> 31 | AD27: =C27+F27+I27+L27+O27+R27+U27+X27+AA27 -> 51 | AE27: =D27+G27+J27+M27+P27+S27+V27+Y27+AB27 -> 274
A28: =IF(MATRICULA!B20=0,"",MATRICULA!B20) -> SEC TÉCNICAS | C28: 171 | D28: 309 | E28: =IF(SUM(C28,D28)=0,"",SUM(C28,D28)) -> 480 | F28: 233 | G28: 566 | H28: =IF(SUM(F28,G28)=0,"",SUM(F28,G28)) -> 799 | I28: 233 | J28: 312 | K28: =IF(SUM(I28,J28)=0,"",SUM(I28,J28)) -> 545 | L28: 167 | M28: 431 | N28: =IF(SUM(L28,M28)=0,"",SUM(L28,M28)) -> 598 | O28: 133 | P28: 369 | Q28: =IF(SUM(O28,P28)=0,"",SUM(O28,P28)) -> 502 | R28: 121 | S28: 392 | T28: =IF(SUM(R28,S28)=0,"",SUM(R28,S28)) -> 513 | U28: 152 | V28: 301 | W28: =IF(SUM(U28,V28)=0,"",SUM(U28,V28)) -> 453 | X28: 95 | Y28: 103 | Z28: =IF(SUM(X28,Y28)=0,"",SUM(X28,Y28)) -> 198 | AA28: 102 | AB28: 165 | AC28: =IF(SUM(AA28,AB28)=0,"",SUM(AA28,AB28)) -> 267 | AD28: =IF(SUM(C28,F28,I28,L28,O28,R28,U28,X28,AA28)=0,"",SUM(C28,F28,I28,L28,O28,R28,U28,X28,AA28)) -> 1407 | AE28: =IF(SUM(D28,G28,J28,M28,P28,S28,V28,Y28,AB28)=0,"",SUM(D28,G28,J28,M28,P28,S28,V28,Y28,AB28)) -> 2948
A29: =IF(MATRICULA!B21=0,"",MATRICULA!B21) -> TELESECUNDARIAS | C29: 34 | D29: 59 | E29: 93 | F29: 25 | G29: 116 | H29: 141 | I29: 23 | J29: 77 | K29: 100 | L29: 32 | M29: 98 | N29: 130 | O29: 23 | P29: 71 | Q29: 94 | R29: 34 | S29: 68 | T29: 102 | U29: 23 | V29: 49 | W29: 72 | X29: 17 | Y29: 30 | Z29: 47 | AA29: 20 | AB29: 46 | AC29: 66 | AD29: 231 | AE29: 614
A30: =IF(MATRICULA!B22=0,"",MATRICULA!B22) -> 
A31: Total | C31: =IF(SUM(C26:C30)=0,"",SUM(C26:C30)) -> 320 | D31: 736 | E31: 1056 | F31: 443 | G31: 1306 | H31: 1749 | I31: 416 | J31: 871 | K31: 1287 | L31: 333 | M31: 1002 | N31: 1335 | O31: 299 | P31: 790 | Q31: 1089 | R31: 253 | S31: 824 | T31: 1077 | U31: 330 | V31: 684 | W31: 1014 | X31: 195 | Y31: 198 | Z31: 393 | AA31: 221 | AB31: 537 | AC31: 758 | AD31: 2810 | AE31: 6948
A32: Nota: Para las columnas "Campos de Formación Académica y Áreas de Desarrollo Personal y Social en riesgo de no acreditar" registre la cantidad de cincos o seis que existen en cada campo o área.

Sheet Gráfica APROV 3
B3: Secretaría de Educación Pública del Estado de Baja California Sur
B4: Dirección de Educación Secundaria
B5: TERCER GRADO
B6: PERIODO EVALUACIÓN: | N6: =MATRICULA!O7 -> CONCENTRADO TERCER PERIODO DE EVALUACIÓN
B7: CICLO ESCOLAR : | N7: =MATRICULA!O8 -> 2022-2023
J9: =MATRICULA!I11 -> MTRA. OFELIA ELIZABETH OCHOA ROMERO
J10: =MATRICULA!I12 -> DIRECCIÓN DE EDUCACIÓN SECUNDARIA
B12: Español III | C12: Matemáticas III | D12: Segunda Lengua: Inglés III | E12: Ciencias III (Énfasis en Química) | F12: Historia II | G12: Formación Cívica y Ética II | H12: Tecnología III | I12: Educación Física III | J12: Artes III
B13: ='APROV 3'!C21 -> 8.6 | C13: ='APROV 3'!F21 -> 8.4 | D13: ='APROV 3'!I21 -> 8.7 | E13: ='APROV 3'!L21 -> 8.6 | F13: ='APROV 3'!O21 -> 8.7 | G13: ='APROV 3'!R21 -> 8.8 | H13: ='APROV 3'!U21 -> 9 | I13: ='APROV 3'!X21 -> 9.5 | J13: ='APROV 3'!AA21 -> 9.2

Sheet Gráfica Promedios Finales
B3: Secretaría de Educación Pública del Estado de Baja California Sur
B4: Dirección de Educación Secundaria
B5: PERIODO DE EVALUACIÓN: | N5: =MATRICULA!O7 -> CONCENTRADO TERCER PERIODO DE EVALUACIÓN
B6: CICLO ESCOLAR : | N6: =MATRICULA!O8 -> 2022-2023
I8: =MATRICULA!I11 -> MTRA. OFELIA ELIZABETH OCHOA ROMERO
I9: =MATRICULA!I12 -> DIRECCIÓN DE EDUCACIÓN SECUNDARIA
B14: PROMEDIO 1RO | C14: PROMEDIO 2DO | D14: PROMEDIO 3ERO
B15: =+'APROV 1'!AG21 -> 8.7 | C15: =+'APROV 2'!AD25 -> 8.7 | D15: ='APROV 3'!AD21 -> 8.8

Sheet NORMALIDAD MÍNIMA
B3: Secretaría de Educación Pública del Estado de Baja California Sur
B4: Dirección de Educación Secundaria
B5: NORMALIDAD MÍNIMA
B6: PERIODO DE EVALUACIÓN: | K6: =IF('APROV 1'!O7<>0,'APROV 1'!O7, "") -> CONCENTRADO TERCER PERIODO DE EVALUACIÓN
B7: CICLO ESCOLAR : | K7: =IF('APROV 1'!O8<>0, 'APROV 1'!O8, "") -> 2022-2023
G9: =MATRICULA!I11 -> MTRA. OFELIA ELIZABETH OCHOA ROMERO
G10: =MATRICULA!I12 -> DIRECCIÓN DE EDUCACIÓN SECUNDARIA
A12: MODALIDAD | B12: DIRECTIVOS Directores | D12: DIRECTIVOS Subdirectores | G12: COORDINADORES | J12: R | K12: INASISTENCIAS | N12: LICENCIAS ECONÓMICAS | P12: LICENCIAS MÉDICAS | R12: TOTAL DE DÍAS NO LABORADOS
B13: H | C13: M | D13: H | E13: M | F13: T | G13: H | H13: M | I13: T | K13: I | L13: P.D. | M13: D.N.L.I y P.D. | N13: L.E. | O13: D.N.L.E. | P13: L.M. | Q13: D.N.L.M. | R13: DNLI y PD, DNLE, DNLM
A14: =IF(MATRICULA!B18=0,"",MATRICULA!B18) -> GENERALES PÚBLICAS | B14: 34 | C14: 10 | D14: 18 | E14: 20 | F14: =IF(SUM(B14:E14)=0,"",SUM(B14:E14)) -> 82 | G14: 19 | H14: 16 | I14: =IF(SUM(G14,H14)=0,"",SUM(G14,H14)) -> 35 | J14: 4 | L14: 25 | M14: =IF(SUM(K14,L14)=0,"",SUM(K14,L14)) -> 25 | N14: 56 | O14: 114 | P14: 21 | Q14: 167 | R14: =IF(SUM(M14,O14,Q14)=0,"",SUM(M14,O14,Q14)) -> 306
A15: =IF(MATRICULA!B19=0,"",MATRICULA!B19) -> GENERALES PARTICULARES | F15: =IF(SUM(B15:E15)=0,"",SUM(B15:E15)) ->  | I15: =IF(SUM(G15,H15)=0,"",SUM(G15,H15)) ->  | M15: =IF(SUM(K15,L15)=0,"",SUM(K15,L15)) -> 
A16: =IF(MATRICULA!B20=0,"",MATRICULA!B20) -> SEC TÉCNICAS | B16: 19 | C16: 13 | D16: 19 | E16: 11 | F16: 62 | G16: 29 | H16: 19 | I16: 48 | J16: 4 | K16: 2 | L16: 10 | M16: 12 | N16: 42 | O16: 96 | P16: 23 | Q16: 103 | R16: 211
A17: =IF(MATRICULA!B21=0,"",MATRICULA!B21) -> TELESECUNDARIAS | B17: 17 | C17: 6 | D17: 10 | E17: 3 | F17: 36 | L17: 82 | M17: 82 | N17: 17 | O17: 46 | P17: 3 | Q17: 7 | R17: 135
A18: =IF(MATRICULA!B22=0,"",MATRICULA!B22) -> 
A19: Total | B19: =IF(SUM(B14:B18)=0,"",SUM(B14:B18)) -> 70 | C19: 29 | D19: 47 | E19: 34 | F19: 180 | G19: 48 | H19: 35 | I19: 83 | J19: 8 | K19: 2 | L19: 117 | M19: 119 | N19: 115 | O19: 256 | P19: 47 | Q19: 277 | R19: 652
A21: MODALIDAD | B21: PERSONAL POR HORAS | G21: DOCENTES | J21: R | K21: INASISTENCIAS (Horas) | N21: LICENCIAS ECONÓMICAS | P21: LICENCIAS MÉDICAS | R21: TOTAL DE HORAS NO LABORADOS
G22: F | H22: E | I22: T | K22: I | L22: P.D. | M22: H.N.L.I y P.D. | N22: L.E. | O22: H.N.L.E. | P22: L.M. | Q22: H.N.L.M. | R22: HNLI y PD, HNLE, HNLM
A23: =IF(MATRICULA!B18=0,"",MATRICULA!B18) -> GENERALES PÚBLICAS | G23: 994 | H23: 87 | I23: =IF(SUM(G23,H23)=0,"",SUM(G23,H23)) -> 1081 | J23: 1071 | K23: 1943 | L23: 744 | M23: =IF(SUM(K23,L23)=0,"",SUM(K23,L23)) -> 2687 | N23: 622 | O23: 6073 | P23: 365 | Q23: 4458 | R23: =IF(SUM(M23,O23,Q23)=0,"",SUM(M23,O23,Q23)) -> 13218
A24: =IF(MATRICULA!B19=0,"",MATRICULA!B19) -> GENERALES PARTICULARES | M24: =IF(SUM(K24,L24)=0,"",SUM(K24,L24)) -> 
A25: =IF(MATRICULA!B20=0,"",MATRICULA!B20) -> SEC TÉCNICAS | G25: 725 | H25: 123 | I25: 848 | J25: 362 | K25: 1016 | L25: 856 | M25: 1872 | N25: 515 | O25: 5192 | P25: 238 | Q25: 4083 | R25: 11147
A26: =IF(MATRICULA!B21=0,"",MATRICULA!B21) -> TELESECUNDARIAS | G26: 240 | H26: 38 | I26: 278 | K26: 5 | M26: 5 | N26: 125 | O26: 1136 | P26: 26 | Q26: 323 | R26: 1464
A27: =IF(MATRICULA!B22=0,"",MATRICULA!B22) -> 
A28: Total | G28: =IF(SUM(G23:G27)=0,"",SUM(G23:G27)) -> 1959 | H28: 248 | I28: 2207 | J28: 1433 | K28: 2964 | L28: 1600 | M28: 4564 | N28: 1262 | O28: 12401 | P28: 629 | Q28: 8864 | R28: 25829
A30: MODALIDAD | B30: ASISTENCIA EDUCATIVA (Psicólogos, trabajo social, médicos, prefectos) | G30: ADMINISTRATIVO Y DE APOYO | J30: R | K30: INASISTENCIAS | N30: LICENCIAS ECONÓMICAS | P30: LICENCIAS MÉDICAS | R30: TOTAL DE DÍAS NO LABORADOS
B31: F | D31: E | F31: T | G31: F | H31: E | I31: T | K31: I | L31: P.D. | M31: D.N.L.I y P.D. | N31: L.E. | O31: D.N.L.E. | P31: L.M. | Q31: D.N.L.M. | R31: DNLI y PD, DNLE, DNLM
A32: =IF(MATRICULA!B18=0,"",MATRICULA!B18) -> GENERALES PÚBLICAS | B32: 164 | D32: 37 | F32: =IF(SUM(B32:E32)=0,"",SUM(B32:E32)) -> 201 | G32: 294 | H32: 155 | I32: =IF(SUM(G32,H32)=0,"",SUM(G32,H32)) -> 449 | J32: 353 | K32: 154 | L32: 78 | M32: =IF(SUM(K32,L32)=0,"",SUM(K32,L32)) -> 232 | N32: 449 | O32: 932 | P32: 158 | Q32: 742 | R32: =IF(SUM(M32,O32,Q32)=0,"",SUM(M32,O32,Q32)) -> 1906
A33: =IF(MATRICULA!B19=0,"",MATRICULA!B19) -> GENERALES PARTICULARES | F33: =IF(SUM(B33:E33)=0,"",SUM(B33:E33)) -> 
A34: =IF(MATRICULA!B20=0,"",MATRICULA!B20) -> SEC TÉCNICAS | B34: 125 | D34: 37 | F34: 162 | G34: 205 | H34: 107 | I34: 312 | J34: 63 | K34: 222 | L34: 78 | M34: 300 | N34: 249 | O34: 598 | P34: 85 | Q34: 529 | R34: 1427
A35: =IF(MATRICULA!B21=0,"",MATRICULA!B21) -> TELESECUNDARIAS | B35: 14 | D35: 16 | F35: 30 | G35: 37 | H35: 65 | I35: 102 | N35: 48 | O35: 230 | P35: 26 | Q35: 375 | R35: 605
A36: =IF(MATRICULA!B22=0,"",MATRICULA!B22) -> 
A37: Total | B37: =IF(SUM(B32:B36)=0,"",SUM(B32:B36)) -> 303 | D37: =IF(SUM(D32:D36)=0,"",SUM(D32:D36)) -> 90 | F37: =IF(SUM(F32:F36)=0,"",SUM(F32:F36)) -> 393 | G37: 536 | H37: 327 | I37: 863 | J37: 416 | K37: 376 | L37: 156 | M37: 532 | N37: 746 | O37: 1760 | P37: 269 | Q37: 1646 | R37: 3938
A39: NOTA: | L39: NOTA:
A40: I.: INASISTENCIAS | L40: H.N.L.E.: HORAS NO LABORADOS POR LICENCIAS ECONÓMICAS
A41: H.N.L.I.: HORAS NO LABORADAS POR INASISTENCIAS | L41: D.N.L.E.: DÍAS NO LABORADOS POR LICENCIAS ECONÓMICAS
A42: D.N.L.I.: DÍAS NO LABORADOS POR INASISTENCIAS | L42: L.M.: PERSONAS QUE PRESENTARON LICENCIAS MÉDICAS
A43: R. : CANTIDAD DE RETARDOS | L43: H.N.L.M.: HORAS NO LABORADAS POR LICENCIAS MÉDICAS
A44: L.E.: PERSONAL QUE SOLICITÓ LICENCIAS ECONÓMICAS | L44: D.N.L.M.: DÍAS NO LABORADOS POR LICENCIAS MÉDICAS
A45: P.D.: PERMISOS DIRECCIÓN | L45: F: FONE E: EVENTUALES
